bitfinex/quotes_SOLUSD_20240530
["timestamp","ask_amount","ask_price","bid_price","bid_amount"]
[1717092939855,4.3312,170.86,170.84,60.0]
[1717092940158,2.1656,170.85,170.84,60.0]
[1717092946159,6.4968,170.85,170.84,60.0]
[1717092947161,2.1657,170.84,170.83,60.0]
[1717092950464,8.25051524,170.88,170.87,60.0]
[1717092950645,2.1652,170.88,170.87,60.0]
[1717092951044,2.1655,170.86,170.85,60.0]
[1717092952868,2.1654,170.87,170.85,60.0]
[1717092953861,2.1655,170.86,170.85,60.0]
[1717092955373,4.3302,170.9,170.88,60.0]
[1717092956569,4.3295,170.92,170.88,60.0]
[1717092957465,4.3295,170.92,170.9,60.0]
[1717092957674,2.1648,170.91,170.9,60.0]
[1717092962476,8.0848,170.91,170.9,60.0]
[1717092963378,2.1645,170.94,170.93,60.0]
[1717092963679,8.0845,170.94,170.93,60.0]
[1717092964882,5.92,170.94,170.91,60.0]
[1717092965053,2.1647,170.92,170.91,60.0]
[1717092965476,2.1647,170.92,170.89,60.0]
[1717092966678,5.92,170.9,170.89,60.0]
[1717092967256,2.1646,170.93,170.92,60.0]
[1717092967479,8.0846,170.93,170.92,60.0]
[1717092967693,5.92,170.93,170.92,60.0]
[1717092969677,2.1648,170.91,170.9,60.0]
[1717092969875,8.0848,170.91,170.9,60.0]
[1717092972788,11.84,170.91,170.88,60.0]
[1717092972984,11.84,170.91,170.84,380.9]
[1717092972985,2.1653,170.87,170.84,380.9]
[1717092973196,2.1656,170.85,170.84,60.0]
[1717092973786,2.1653,170.87,170.86,60.0]
[1717092974368,8.0853,170.87,170.86,60.0]
[1717092975969,5.92,170.87,170.83,60.0]
[1717092976182,18.18123531,170.91,170.81,440.9]
[1717092976382,2.166,170.82,170.81,380.9]
[1717092978578,2.1667,170.77,170.75,60.0]
[1717092978767,2.1667,170.76,170.75,60.0]
[1717092978965,2.167,170.74,170.73,60.0]
[1717092979980,2.167,170.74,170.71,60.0]
[1717092980294,2.1671,170.73,170.71,60.0]
[1717092980596,2.1672,170.72,170.71,60.0]
[1717092983276,4.3347,170.72,170.65,60.0]
[1717092983523,6.5021,170.72,170.65,60.0]
[1717092983803,4.3351,170.7,170.65,60.0]
[1717092984389,2.168,170.67,170.65,60.0]
[1717092984796,2.168,170.66,170.65,60.0]
[1717092985184,6.5041,170.66,170.65,60.0]
[1717092985394,2.168,170.66,170.65,60.0]
[1717092985912,10.42596776,170.72,170.68,60.0]
[1717092986080,2.1675,170.7,170.68,60.0]
[1717092986400,6.06872075,170.73,170.71,60.0]
[1717092986598,8.6668,170.77,170.71,60.0]
[1717092986779,13.0001,170.77,170.71,60.0]
[1717092986982,2.1671,170.74,170.73,60.0]
[1717092987680,2.1672,170.72,170.71,60.0]
[1717092988702,2.1674,170.71,170.69,60.0]
[1717092989202,4.3338,170.75,170.69,60.0]
[1717092989203,2.1673,170.72,170.69,60.0]
[1717092990110,2.1674,170.71,170.69,60.0]
[1717092990277,6.06245612,170.76,170.71,60.0]
[1717092990610,2.1672,170.73,170.71,60.0]
[1717092990776,6.06245612,170.76,170.71,60.0]
[1717092990777,2.1672,170.72,170.71,60.0]
[1717092992484,2.1672,170.73,170.71,60.0]
[1717092992706,6.06245612,170.76,170.73,60.0]
[1717092992883,2.167,170.74,170.73,60.0]
[1717092994205,2.167,170.74,170.66,6.2785]
[1717092994206,2.1672,170.72,170.71,60.0]
[1717092994409,2.1675,170.7,170.69,60.0]
[1717092994604,6.08931773,170.77,170.67,60.0]
[1717092994780,2.1677,170.68,170.67,60.0]
[1717093000095,6.5032,170.68,170.67,60.0]
[1717093000614,2.1677,170.68,170.67,60.0]
[1717093002116,2.1677,170.69,170.67,60.0]
[1717093002417,2.1677,170.68,170.67,60.0]
[1717093002914,23.5784,170.68,170.67,60.0]
[1717093003103,2.168,170.66,170.65,60.0]
[1717093004193,2.1678,170.68,170.65,60.0]
[1717093004515,2.1678,170.68,170.67,60.0]
[1717093004891,10.7029,170.74,170.71,60.0]
[1717093005098,4.3342,170.74,170.71,60.0]
[1717093005298,2.1672,170.72,170.71,60.0]
[1717093005706,13.0051,170.7,170.69,60.0]
[1717093005908,2.1675,170.7,170.69,60.0]
[1717093006310,4.3341,170.74,170.72,60.0]
[1717093006618,2.1671,170.73,170.72,60.0]
[1717093008400,2.1669,170.75,170.74,60.0]
[1717093009695,2.1671,170.73,170.72,60.0]
[1717093010597,2.167,170.75,170.74,60.0]
[1717093021318,2.1665,170.78,170.77,60.0]
[1717093022429,6.4995,170.78,170.77,60.0]
[1717093022996,9.5865,170.78,170.77,60.0]
[1717093025404,10.8334,170.77,170.72,60.0]
[1717093025596,6.5005,170.76,170.7,60.0]
[1717093026220,2.1674,170.71,170.7,60.0]
[1717093026410,9.5874,170.71,170.7,60.0]
[1717093026809,7.42,170.71,170.7,60.0]
[1717093027624,9.5874,170.71,170.7,60.0]
[1717093027821,7.42,170.71,170.7,60.0]
[1717093028004,9.5874,170.71,170.7,60.0]
[1717093028903,2.1672,170.73,170.72,60.0]
[1717093029228,9.5872,170.73,170.72,60.0]
[1717093029825,7.42,170.73,170.72,60.0]
[1717093030328,2.167,170.74,170.72,60.0]
[1717093030505,2.1666,170.77,170.76,60.0]
[1717093030710,9.5866,170.77,170.76,60.0]
[1717093031632,4.3328,170.79,170.71,2.1674]
[1717093031633,2.1665,170.78,170.77,60.0]
[1717093031802,9.5865,170.78,170.77,60.0]
[1717093032304,2.1665,170.78,170.77,60.0]
[1717093034136,16.91565052,170.82,170.79,60.0]
[1717093034312,12.58355052,170.82,170.81,60.0]
[1717093034517,6.4982,170.82,170.81,60.0]
[1717093035540,37.4008,170.84,170.79,60.0]
[1717093035541,6.4987,170.8,170.79,60.0]
[1717093035839,2.1662,170.8,170.79,60.0]
[1717093036013,22.24,170.84,170.83,60.0]
[1717093036338,2.1657,170.84,170.83,60.0]
[1717093038920,2.166,170.82,170.81,60.0]
[1717093039518,2.1659,170.83,170.81,60.0]
[1717093039727,2.166,170.82,170.79,60.0]
[1717093040131,2.1662,170.81,170.79,60.0]
[1717093040348,2.166,170.82,170.81,60.0]
[1717093041650,2.1662,170.81,170.79,60.0]
[1717093041946,2.1665,170.78,170.76,60.0]
[1717093042132,4.3324,170.81,170.76,60.0]
[1717093042330,2.1666,170.77,170.76,60.0]
[1717093042831,2.1666,170.77,170.74,440.9]
[1717093043321,2.1666,170.77,170.74,60.0]
[1717093043722,2.1667,170.76,170.74,60.0]
[1717093044343,2.1666,170.77,170.76,60.0]
[1717093046355,24.4065,170.78,170.76,60.0]
[1717093046537,2.1661,170.81,170.8,60.0]
[1717093047845,8.25357368,170.85,170.84,60.0]
[1717093048050,4.3303,170.89,170.84,60.0]
[1717093048051,2.1655,170.86,170.84,60.0]
[1717093048556,2.1656,170.85,170.84,60.0]
[1717093050463,12.75035903,170.9,170.86,60.0]
[1717093050642,2.1653,170.87,170.86,60.0]
[1717093051250,2.1652,170.88,170.86,60.0]
[1717093051555,2.1648,170.91,170.9,60.0]
[1717093052065,2.1647,170.93,170.92,60.0]
[1717093054339,2.1642,170.96,170.95,60.0]
[1717093054740,2.1641,170.98,170.97,60.0]
[1717093055270,4.327,171.02,170.97,60.0]
[1717093055494,4.327,171.02,170.93,17.55]
[1717093055495,6.4902,171.03,170.99,60.0]
[1717093055792,6.07973531,171.05,170.99,66.5426]
[1717093055965,6.07973531,171.05,171.04,60.0]
[1717093056164,11.5972631,171.11,171.06,60.0]
[1717093056165,2.1627,171.08,171.06,60.0]
[1717093056489,2.1625,171.1,171.09,60.0]
[1717093056847,2.1627,171.08,171.07,60.0]
[1717093057570,0.8192631,171.11,171.05,60.0]
[1717093057571,2.1629,171.06,171.05,60.0]
[1717093059561,2.1627,171.08,171.07,60.0]
[1717093062366,25.2215631,171.11,171.1,60.0]
[1717093062576,2.9815631,171.11,171.1,60.0]
[1717093063667,2.1626,171.09,171.08,60.0]
[1717093065457,0.8192631,171.11,170.99,6.5426]
[1717093065458,5.1439631,171.11,171.06,60.0]
[1717093065661,2.1628,171.08,171.06,60.0]
[1717093066079,2.1628,171.07,171.06,60.0]
[1717093066267,2.1628,171.07,171.04,60.0]
[1717093066477,2.1631,171.05,171.04,60.0]
[1717093066788,4.3252,171.09,171.01,60.0]
[1717093066789,2.1632,171.04,171.01,60.0]
[1717093067005,2.1633,171.03,171.01,60.0]
[1717093067866,2.1636,171.01,170.99,60.0]
[1717093068068,4.3262,171.05,170.97,60.0]
[1717093068069,8.6525,171.05,170.97,60.0]
[1717093068280,22.24,171.02,170.97,60.0]
[1717093068491,2.1637,171.0,170.99,60.0]
[1717093068700,4.3266,171.04,170.99,60.0]
[1717093068989,2.1635,171.02,171.01,60.0]
[1717093069163,2.1633,171.04,171.03,60.0]
[1717093071103,6.4884,171.08,171.01,60.0]
[1717093071295,2.1635,171.02,170.99,60.0]
[1717093071610,2.1636,171.01,170.99,60.0]
[1717093071789,2.1636,171.01,170.97,60.0]
[1717093071991,2.1637,171.0,170.97,60.0]
[1717093072697,2.1636,171.01,170.99,60.0]
[1717093073299,2.1635,171.02,171.01,60.0]
[1717093074693,19.4673,171.06,171.03,60.0]
[1717093074904,2.1634,171.02,171.01,60.0]
[1717093077014,2.1634,171.03,171.01,60.0]
[1717093077385,6.4887,171.07,171.01,60.0]
[1717093077586,2.1634,171.02,171.01,60.0]
[1717093078310,2.1637,171.0,170.97,60.0]
[1717093078902,2.1637,171.0,170.99,60.0]
[1717093079817,2.1636,171.01,170.99,60.0]
[1717093080107,2.1638,170.99,170.97,60.0]
[1717093080295,2.1639,170.98,170.97,60.0]
[1717093080502,2.1639,170.99,170.97,60.0]
[1717093080811,2.1639,170.98,170.97,60.0]
[1717093081510,2.1639,170.99,170.97,60.0]
[1717093081711,4.326,171.06,171.01,60.0]
[1717093081919,4.326,171.06,171.03,60.0]
[1717093082121,2.1632,171.04,171.03,60.0]
[1717093082294,21.27448903,171.1,171.03,60.0]
[1717093082295,2.1631,171.05,171.03,60.0]
[1717093082714,2.1632,171.04,171.01,60.0]
[1717093082898,2.1634,171.03,171.01,60.0]
[1717093083093,2.1633,171.03,171.01,60.0]
[1717093083315,2.1631,171.05,171.04,60.0]
[1717093083816,4.3259,171.06,171.01,60.0]
[1717093083992,2.1634,171.03,171.01,60.0]
[1717093084199,2.1636,171.01,170.99,60.0]
[1717093084608,2.1635,171.02,170.99,60.0]
[1717093084812,2.1635,171.02,171.01,60.0]
[1717093085311,4.3264,171.05,171.04,60.0]
[1717093085516,2.1633,171.03,171.02,60.0]
[1717093092821,6.08258903,171.1,171.03,6.4042]
[1717093093122,2.1625,171.1,171.09,60.0]
[1717093096096,2.9815631,171.11,171.09,60.0]
[1717093096295,0.8192631,171.11,171.09,60.0]
[1717093096610,2.9815631,171.11,171.09,60.0]
[1717093097718,2.1624,171.1,171.09,60.0]
[1717093099798,2.9815631,171.11,171.09,60.0]
[1717093100200,2.1624,171.1,171.09,60.0]
[1717093100603,2.9816631,171.11,171.09,60.0]
[1717093101031,0.8192631,171.11,171.09,60.0]
[1717093101264,0.8192631,171.11,171.09,66.1207]
[1717093101736,0.8192631,171.11,171.09,60.0]
[1717093102023,2.9815631,171.11,171.09,60.0]
[1717093102429,0.8192631,171.11,171.09,60.0]
[1717093103736,2.1625,171.1,171.07,60.0]
[1717093103913,2.1625,171.1,171.09,60.0]
[1717093104321,2.9815631,171.11,171.09,60.0]
[1717093105622,0.8192631,171.11,171.09,60.0]
[1717093106406,0.8192631,171.11,171.09,66.1237]
[1717093106612,0.8192631,171.11,171.09,68.2862]
[1717093107223,0.8192631,171.11,171.09,60.0]
[1717093108716,0.8192631,171.11,171.09,66.3038]
[1717093108943,0.8192631,171.11,171.09,68.4663]
[1717093109746,0.8192631,171.11,171.1,2.1624]
[1717093110046,0.8192631,171.11,171.1,9.25780735]
[1717093110625,0.8192631,171.11,171.1,3.00130735]
[1717093110831,0.8192631,171.11,171.09,79.7125]
[1717093111917,0.8192631,171.11,171.09,62.1625]
[1717093112752,0.8192631,171.11,171.09,60.0]
[1717093113438,0.8192631,171.11,171.09,62.1625]
[1717093113750,0.8192631,171.11,171.09,60.0]
[1717093114661,2.1629,171.06,171.05,440.9]
[1717093115635,2.1632,171.04,171.03,60.0]
[1717093115851,2.1634,171.03,171.01,60.0]
[1717093116155,33.1256,171.05,171.01,60.0]
[1717093117141,2.1634,171.03,171.01,60.0]
[1717093117331,2.1632,171.04,171.03,60.0]
[1717093118364,2.1633,171.03,171.01,60.0]
[1717093118801,6.6193,171.05,171.04,60.0]
[1717093118941,6.6193,171.09,171.06,60.0]
[1717093119139,2.1628,171.07,171.06,60.0]
[1717093119372,6.6193,171.09,171.04,60.0]
[1717093119666,2.1631,171.05,171.04,60.0]
[1717093119967,6.6193,171.07,171.02,60.0]
[1717093120183,2.1633,171.03,171.02,60.0]
[1717093122244,2.1632,171.04,171.02,60.0]
[1717093122551,6.6193,171.07,171.05,60.0]
[1717093122755,8.6511,171.08,171.05,60.0]
[1717093123252,2.1629,171.06,171.05,60.0]
[1717093127679,4.325,171.1,171.08,60.0]
[1717093127680,10.8125,171.1,171.08,60.0]
[1717093127997,2.1626,171.09,171.08,60.0]
[1717093135185,0.8192631,171.11,171.1,60.0]
[1717093137503,0.8192631,171.11,171.1,62.1624]
[1717093137802,0.8192631,171.11,171.1,60.0]
[1717093139482,0.8192631,171.11,171.1,66.2322]
[1717093139820,0.8192631,171.11,171.1,68.3946]
[1717093139982,0.8192631,171.11,171.1,85.9446]
[1717093140409,0.8192631,171.11,171.1,68.3946]
[1717093140609,0.8192631,171.11,171.1,60.0]
[1717093140994,0.8192631,171.11,171.1,62.1624]
[1717093141195,0.8192631,171.11,171.1,72.5389]
[1717093141396,0.8192631,171.11,171.1,114.834]
[1717093141595,0.8192631,171.11,171.1,106.1841]
[1717093141819,0.8192631,171.11,171.1,121.3214]
[1717093141987,0.8192631,171.11,171.1,106.1841]
[1717093142189,0.8192631,171.11,171.1,101.8592]
[1717093142585,0.8192631,171.11,171.1,85.764]
[1717093143388,0.8192631,171.11,171.1,68.214]
[1717093143579,0.8192631,171.11,171.1,2.1624]
[1717093143780,0.8192631,171.11,171.1,60.0]
[1717093144005,2.9815631,171.11,171.1,60.0]
[1717093144887,2.9815631,171.11,171.08,60.0]
[1717093145097,0.8192631,171.11,171.08,60.0]
[1717093145417,2.9815631,171.11,171.1,60.0]
[1717093146345,0.8192631,171.11,171.1,60.0]
[1717093147699,2.9815631,171.11,171.1,60.0]
[1717093148000,0.8192631,171.11,171.1,60.0]
[1717093148405,0.8192631,171.11,171.1,62.1624]
[1717093148611,0.8192631,171.11,171.1,60.0]
[1717093148909,0.8192631,171.11,171.1,62.1624]
[1717093149303,0.8192631,171.11,171.1,60.0]
[1717093149503,0.8192631,171.11,171.1,62.1624]
[1717093149691,0.8192631,171.11,171.1,68.577]
[1717093150322,0.8192631,171.11,171.1,86.127]
[1717093150496,0.8192631,171.11,171.1,467.027]
[1717093150818,0.8192631,171.11,171.1,471.3519]
[1717093151399,0.8192631,171.11,171.1,467.027]
[1717093151595,0.8192631,171.11,171.1,440.9]
[1717093153324,0.8192631,171.11,171.1,60.0]
[1717093154008,2.9815631,171.11,171.1,60.0]
[1717093155229,0.8192631,171.11,171.1,60.0]
[1717093156519,2.9815631,171.11,171.1,60.0]
[1717093157023,0.8192631,171.11,171.1,60.0]
[1717093158809,0.8192631,171.11,171.1,62.1624]
[1717093159430,0.8192631,171.11,171.1,60.0]
[1717093162543,0.8192631,171.11,171.1,62.1624]
[1717093162721,0.8192631,171.11,171.1,86.3436]
[1717093163109,0.8192631,171.11,171.1,62.1624]
[1717093164105,0.8192631,171.11,171.1,86.3436]
[1717093164431,0.8192631,171.11,171.1,121.4136]
[1717093165234,0.8192631,171.11,171.1,125.7385]
[1717093166018,0.8192631,171.11,171.1,62.1624]
[1717093166212,0.8192631,171.11,171.1,79.7124]
[1717093166419,0.8192631,171.11,171.1,114.7824]
[1717093166830,0.8192631,171.11,171.1,121.2292]
[1717093168546,0.8192631,171.11,171.1,125.5541]
[1717093169423,0.8192631,171.11,171.1,506.4541]
[1717093170534,0.8192631,171.11,171.1,495.6824]
[1717093174342,0.8192631,171.11,171.1,509.6276]
[1717093174719,0.8192631,171.11,171.1,513.9525]
[1717093179518,2.1611,171.21,171.19,60.0]
[1717093179729,6.5185,171.22,171.21,60.0]
[1717093179730,8.6794,171.22,171.21,60.0]
[1717093179937,16.0594,171.22,171.21,60.0]
[1717093180138,6.0971954,171.27,171.24,60.0]
[1717093180342,16.0591,171.25,171.24,60.0]
[1717093181025,6.5185,171.25,171.24,60.0]
[1717093181244,9.4599631,171.29,171.24,60.0]
[1717093181245,2.1604,171.26,171.24,60.0]
[1717093181425,6.5185,171.26,171.24,60.0]
[1717093181625,16.059,171.25,171.24,60.0]
[1717093182145,13.8985,171.25,171.24,60.0]
[1717093182329,7.38,171.25,171.24,60.0]
[1717093182934,9.5405,171.25,171.24,60.0]
[1717093183155,7.38,171.25,171.24,60.0]
[1717093183358,9.5405,171.25,171.24,60.0]
[1717093183930,7.38,171.25,171.24,60.0]
[1717093184148,9.5405,171.25,171.24,60.0]
[1717093184457,16.059,171.25,171.24,60.0]
[1717093185448,16.059,171.25,171.22,60.0]
[1717093185664,8.679,171.25,171.22,60.0]
[1717093185857,6.5185,171.25,171.24,60.0]
[1717093186049,8.679,171.25,171.24,60.0]
[1717093187564,8.679,171.25,171.22,60.0]
[1717093189252,6.5185,171.25,171.24,60.0]
[1717093189557,13.8985,171.25,171.24,60.0]
[1717093190145,7.38,171.25,171.24,60.0]
[1717093190749,9.5405,171.25,171.24,60.0]
[1717093190955,15.7989,171.25,171.24,60.0]
[1717093191867,15.7989,171.25,171.22,60.0]
[1717093192068,6.2584,171.25,171.22,60.0]
[1717093192269,7.38,171.23,171.22,60.0]
[1717093193655,15.16,171.22,171.2,60.0]
[1717093193855,4.321,171.26,171.18,60.0]
[1717093193856,8.4196,171.2,171.18,60.0]
[1717093194072,9.5413,171.19,171.18,60.0]
[1717093194580,7.38,171.19,171.18,60.0]
[1717093194751,7.38,171.19,171.16,60.0]
[1717093194949,6.3713,171.19,171.16,60.0]
[1717093195554,2.1614,171.18,171.16,60.0]
[1717093195957,6.3713,171.18,171.16,60.0]
[1717093197552,8.5325,171.2,171.19,60.0]
[1717093197953,2.1611,171.21,171.19,60.0]
[1717093198152,2.1612,171.2,171.19,60.0]
[1717093198655,2.1611,171.21,171.19,60.0]
[1717093200078,2.161,171.22,171.21,60.0]
[1717093200269,9.541,171.22,171.21,60.0]
[1717093201396,2.161,171.22,171.21,60.0]
[1717093202767,2.1611,171.21,171.19,60.0]
[1717093203275,33.2433,171.25,171.22,60.0]
[1717093203276,27.1398,171.25,171.22,60.0]
[1717093203460,6.4987,171.24,171.22,60.0]
[1717093203983,2.1608,171.24,171.22,60.0]
[1717093204166,2.1604,171.26,171.25,60.0]
[1717093204482,7.38,171.26,171.25,60.0]
[1717093205159,2.1603,171.27,171.25,60.0]
[1717093205354,2.1604,171.26,171.25,60.0]
[1717093205975,2.1603,171.27,171.25,60.0]
[1717093206356,2.1602,171.28,171.27,60.0]
[1717093207972,0.8192631,171.29,171.27,60.0]
[1717093208175,2.9793631,171.29,171.27,60.0]
[1717093208694,2.1602,171.28,171.27,60.0]
[1717093209589,2.1602,171.28,171.26,60.0]
[1717093209987,0.8192631,171.29,171.26,60.0]
[1717093210180,2.9793631,171.29,171.26,60.0]
[1717093210684,2.9793631,171.29,171.23,2.1608]
[1717093210685,2.9793631,171.29,171.28,60.0]
[1717093211572,2.1602,171.28,171.26,60.0]
[1717093211767,0.8192631,171.29,171.28,60.0]
[1717093213773,0.8192631,171.29,171.28,62.1602]
[1717093214175,0.8192631,171.29,171.28,60.0]
[1717093214378,0.8192631,171.29,171.28,62.1602]
[1717093214589,0.8192631,171.29,171.28,60.0]
[1717093215772,0.8192631,171.29,171.28,62.1602]
[1717093217092,0.8192631,171.29,171.28,121.4393]
[1717093217479,0.8192631,171.29,171.28,103.8893]
[1717093218082,0.8192631,171.29,171.28,121.4393]
[1717093221079,0.8192631,171.29,171.28,114.7802]
[1717093223304,0.8192631,171.29,171.28,60.0]
[1717093224007,2.9792631,171.29,171.28,60.0]
[1717093224205,2.9792631,171.29,171.25,380.9]
[1717093224206,9.4751631,171.29,171.26,60.0]
[1717093224389,0.8192631,171.29,171.28,114.7802]
[1717093224598,0.8192631,171.29,171.28,62.1602]
[1717093224903,0.8192631,171.29,171.28,60.0]
[1717093226105,0.8192631,171.29,171.26,60.0]
[1717093226106,6.4959,171.28,171.26,60.0]
[1717093226311,6.4959,171.28,171.24,60.0]
[1717093226507,7.37,171.25,171.24,60.0]
[1717093227507,8.6561,171.28,171.26,60.0]
[1717093228011,2.1603,171.27,171.26,60.0]
[1717093228689,2.1603,171.27,171.24,60.0]
[1717093228690,8.6564,171.26,171.24,60.0]
[1717093228880,8.6564,171.26,171.22,60.0]
[1717093229508,6.4959,171.26,171.24,60.0]
[1717093229805,2.1604,171.26,171.24,60.0]
[1717093230011,16.5772631,171.29,171.24,60.0]
[1717093230012,2.1603,171.27,171.24,60.0]
[1717093230312,8.6561,171.28,171.26,60.0]
[1717093230605,2.1603,171.27,171.26,60.0]
[1717093231433,2.1603,171.27,171.24,60.0]
[1717093233909,0.8192631,171.29,171.24,60.0]
[1717093234110,0.8192631,171.29,171.27,60.0]
[1717093234792,2.9793631,171.29,171.27,60.0]
[1717093234989,0.8192631,171.29,171.27,60.0]
[1717093235385,0.8192631,171.29,171.28,60.0]
[1717093236319,8.1892631,171.29,171.28,60.0]
[1717093237712,8.1892631,171.29,171.28,483.9825]
[1717093237713,0.8192631,171.29,171.28,483.9825]
[1717093237892,2.159,171.38,171.37,60.0]
[1717093238307,2.159,171.38,171.35,60.0]
[1717093238498,2.159,171.38,171.33,60.0]
[1717093238499,2.159,171.37,171.33,60.0]
[1717093238717,13.9263,171.36,171.33,60.0]
[1717093238897,16.0855,171.36,171.33,60.0]
[1717093239804,17.3494,171.41,171.37,60.0]
[1717093240001,2.1589,171.38,171.37,60.0]
[1717093240197,2.1591,171.37,171.35,60.0]
[1717093240399,6.5559,171.4,171.37,60.0]
[1717093240722,2.1589,171.38,171.37,60.0]
[1717093242393,9.5289,171.38,171.37,60.0]
[1717093242914,2.1591,171.36,171.35,60.0]
[1717093243210,9.5291,171.36,171.35,60.0]
[1717093243601,16.8991,171.36,171.35,60.0]
[1717093244227,14.74,171.36,171.35,60.0]
[1717093245523,14.74,171.36,171.33,60.0]
[1717093245702,2.1594,171.35,171.33,60.0]
[1717093246902,2.1596,171.33,171.31,60.0]
[1717093247496,2.1594,171.34,171.33,60.0]
[1717093247697,2.1593,171.35,171.33,60.0]
[1717093248919,2.1594,171.34,171.33,60.0]
[1717093249827,9.5294,171.34,171.33,60.0]
[1717093250325,2.1594,171.34,171.33,60.0]
[1717093251017,2.1593,171.35,171.33,60.0]
[1717093251225,9.5294,171.34,171.33,60.0]
[1717093252806,2.1594,171.34,171.33,60.0]
[1717093253218,2.1593,171.35,171.33,60.0]
[1717093253705,2.1594,171.34,171.33,60.0]
[1717093260406,9.5294,171.34,171.33,60.0]
[1717093261728,2.1596,171.33,171.31,60.0]
[1717093261942,2.1597,171.32,171.31,60.0]
[1717093263151,2.1599,171.3,171.29,60.0]
[1717093263432,2.1605,171.26,171.23,60.0]
[1717093263728,2.1606,171.25,171.23,60.0]
[1717093263948,7.37,171.24,171.23,60.0]
[1717093264518,9.5307,171.24,171.23,60.0]
[1717093264706,7.37,171.24,171.23,60.0]
[1717093265616,9.5307,171.24,171.23,60.0]
[1717093265841,2.1609,171.22,171.21,60.0]
[1717093266651,4.3213,171.25,171.21,60.0]
[1717093266955,10.6156,171.25,171.21,60.0]
[1717093267125,2.1609,171.22,171.21,60.0]
[1717093267937,2.161,171.21,171.19,60.0]
[1717093268139,6.4821,171.24,171.17,60.0]
[1717093268345,2.1613,171.19,171.17,60.0]
[1717093268546,4.3217,171.23,171.17,60.0]
[1717093268547,2.1614,171.18,171.17,60.0]
[1717093268841,2.1613,171.19,171.17,60.0]
[1717093269052,2.1614,171.18,171.17,60.0]
[1717093269223,2.1614,171.18,171.15,60.0]
[1717093269416,4.3219,171.22,171.14,60.0]
[1717093269417,2.1616,171.17,171.14,60.0]
[1717093269619,2.1615,171.18,171.14,60.0]
[1717093269842,7.37,171.15,171.14,60.0]
[1717093270141,9.5318,171.15,171.14,60.0]
[1717093275121,7.37,171.15,171.14,60.0]
[1717093275929,9.5318,171.15,171.14,60.0]
[1717093276839,2.1618,171.15,171.14,60.0]
[1717093277731,9.5318,171.15,171.14,60.0]
[1717093278141,2.1623,171.11,171.1,60.0]
[1717093278448,2.1625,171.1,171.08,60.0]
[1717093278652,7.37,171.09,171.08,60.0]
[1717093279229,16.1019,171.19,171.11,60.0]
[1717093279230,2.162,171.14,171.11,60.0]
[1717093280260,2.1621,171.13,171.11,60.0]
[1717093280428,2.1615,171.18,171.17,60.0]
[1717093280627,10.5549,171.22,171.17,60.0]
[1717093280827,4.3219,171.22,171.19,60.0]